[Event "*** Titled Tuesday Blitz"]
[Site "Chess.com"]
[Date "2020.11.24"]
[Round "4"]
[White "bait_or_mate"]
[Black "Unknown_IM"]
[Result "0-1"]
[WhiteElo "2595"]
[BlackElo "2400"]
[TimeControl "180+1"]
[EndTime "10:56:52 PST"]
[Termination "Unknown_IM won on time"]

1. d4 {[%clk 0:03:00.9]} 1... d5 {[%clk 0:01:53]} 2. c4 {[%clk 0:03:01.8]} 2...
e6 {[%clk 0:01:52.5]} 3. Nf3 {[%clk 0:03:02.1]} 3... c6 {[%clk 0:01:52.7]} 4. g3
{[%clk 0:03:01]} 4... dxc4 {[%clk 0:01:51.1]} 5. Nbd2 {[%clk 0:03:01.4]} 5... b5
{[%clk 0:01:49.2]} 6. Bg2 {[%clk 0:03:01.6]} 6... Bb7 {[%clk 0:01:49.1]} 7. O-O
{[%clk 0:03:02]} 7... Nf6 {[%clk 0:01:47.7]} 8. b3 {[%clk 0:02:56.4]} 8... cxb3
{[%clk 0:01:47.4]} 9. axb3 {[%clk 0:02:57.3]} 9... a6 {[%clk 0:01:47.3]} 10. Bb2
{[%clk 0:02:57.5]} 10... Nbd7 {[%clk 0:01:47.5]} 11. e4 {[%clk 0:02:55]} 11...
Be7 {[%clk 0:01:47.8]} 12. Qe2 {[%clk 0:02:50.4]} 12... O-O {[%clk 0:01:47.1]}
13. Rfd1 {[%clk 0:02:50.9]} 13... Qc8 {[%clk 0:01:43.9]} 14. Rac1 {[%clk
0:02:50.2]} 14... h6 {[%clk 0:01:34.1]} 15. Nf1 {[%clk 0:02:42.3]} 15... a5
{[%clk 0:01:25.4]} 16. d5 {[%clk 0:02:34.6]} 16... Nc5 {[%clk 0:01:12.2]} 17. d6
{[%clk 0:02:32.2]} 17... Bxd6 {[%clk 0:01:04.4]} 18. Rxd6 {[%clk 0:02:33.1]}
18... Nxb3 {[%clk 0:01:03]} 19. Rb1 {[%clk 0:02:19.4]} 19... Ne8 {[%clk
0:01:00.2]} 20. Rd3 {[%clk 0:02:04.9]} 20... a4 {[%clk 0:00:59.7]} 21. N1d2
{[%clk 0:02:03.7]} 21... Nxd2 {[%clk 0:00:59]} 22. Nxd2 {[%clk 0:02:04.2]} 22...
c5 {[%clk 0:00:54.7]} 23. Be5 {[%clk 0:01:31.1]} 23... b4 {[%clk 0:00:51.8]} 24.
Nc4 {[%clk 0:01:25.4]} 24... Qc6 {[%clk 0:00:41.8]} 25. Qc2 {[%clk 0:01:17.9]}
25... a3 {[%clk 0:00:39.4]} 26. Nd6 {[%clk 0:01:10.1]} 26... Nxd6 {[%clk
0:00:37]} 27. Rxd6 {[%clk 0:01:11]} 27... Qb5 {[%clk 0:00:34]} 28. Bf1 {[%clk
0:00:57]} 28... Qa5 {[%clk 0:00:33.9]} 29. Bc4 {[%clk 0:00:57.6]} 29... Rfd8
{[%clk 0:00:22.4]} 30. Ba2 {[%clk 0:00:56.9]} 30... Rxd6 {[%clk 0:00:20.7]} 31.
Bxd6 {[%clk 0:00:57.8]} 31... Rc8 {[%clk 0:00:21.1]} 32. Rc1 {[%clk 0:00:57.5]}
32... c4 {[%clk 0:00:19.2]} 33. Qd2 {[%clk 0:00:34.2]} 33... Bxe4 {[%clk
0:00:16.5]} 34. Bxb4 {[%clk 0:00:23]} 34... Qd5 {[%clk 0:00:14.9]} 35. Qxd5
{[%clk 0:00:20.5]} 35... exd5 {[%clk 0:00:15.8]} 36. Rc3 {[%clk 0:00:13.8]}
36... Rb8 {[%clk 0:00:14.7]} 37. Bxa3 {[%clk 0:00:13.2]} 37... Ra8 {[%clk
0:00:14.8]} 38. f3 {[%clk 0:00:12]} 38... Bg6 {[%clk 0:00:14.5]} 39. f4 {[%clk
0:00:02.9]} 39... Be4 {[%clk 0:00:14.3]} 40. Kf2 {[%clk 0:00:02.6]} 40... Rd8
{[%clk 0:00:12.3]} 41. Ke1 {[%clk 0:00:01.6]} 41... Bd3 {[%clk 0:00:11.6]} 42.
Bc1 {[%clk 0:00:02]} 42... Ra8 {[%clk 0:00:11]} 43. Bb3 {[%clk 0:00:02.1]} 43...
Ra1 {[%clk 0:00:10.1]} 44. Kd2 {[%clk 0:00:02.3]} 44... d4 {[%clk 0:00:09.1]}
45. Rxc4 {[%clk 0:00:02.1]} 45... Bxc4 {[%clk 0:00:09.1]} 46. Bxc4 {[%clk
0:00:03]} 46... Ra4 {[%clk 0:00:08.8]} 47. Bd3 {[%clk 0:00:03]} 47... Ra2+
{[%clk 0:00:08]} 48. Bc2 {[%clk 0:00:03.3]} 48... g6 {[%clk 0:00:07.3]} 49. Kd3
{[%clk 0:00:03.8]} 49... Kg7 {[%clk 0:00:07.4]} 50. Bd2 {[%clk 0:00:04.3]} 50...
Rb2 {[%clk 0:00:07.3]} 51. Ba5 {[%clk 0:00:04]} 51... Ra2 {[%clk 0:00:07.2]} 52.
Bb6 {[%clk 0:00:03.8]} 52... Kh7 {[%clk 0:00:07]} 53. Bxd4 {[%clk 0:00:03.8]}
53... Ra3+ {[%clk 0:00:07.4]} 54. Ke2 {[%clk 0:00:02.1]} 54... Ra2 {[%clk
0:00:06.7]} 55. Kd2 {[%clk 0:00:02.6]} 55... Ra8 {[%clk 0:00:06.7]} 56. Bc3
{[%clk 0:00:02.8]} 56... Rd8+ {[%clk 0:00:07]} 57. Bd3 {[%clk 0:00:03.3]} 57...
Ra8 {[%clk 0:00:07.6]} 58. Ke3 {[%clk 0:00:03]} 58... Ra2 {[%clk 0:00:07.7]} 59.
Bd2 {[%clk 0:00:03.6]} 59... Ra3 {[%clk 0:00:07.7]} 60. Ke2 {[%clk 0:00:03.8]}
60... Ra2 {[%clk 0:00:07.7]} 61. Be4 {[%clk 0:00:04.1]} 61... Ra4 {[%clk
0:00:07.6]} 62. Bf3 {[%clk 0:00:04.1]} 62... Ra2 {[%clk 0:00:07.7]} 63. Ke3
{[%clk 0:00:04.5]} 63... Ra3+ {[%clk 0:00:08.1]} 64. Ke2 {[%clk 0:00:03.9]}
64... Ra2 {[%clk 0:00:08.6]} 65. Bg2 {[%clk 0:00:04.4]} 65... Rb2 {[%clk
0:00:08.2]} 66. Kd3 {[%clk 0:00:04.1]} 66... Ra2 {[%clk 0:00:08.3]} 67. Bf3
{[%clk 0:00:03.5]} 67... Ra3+ {[%clk 0:00:08.5]} 68. Ke4 {[%clk 0:00:03.2]}
68... f5+ {[%clk 0:00:07.2]} 0-1

[Event "*** Titled Tuesday Blitz"]
[Site "Chess.com"]
[Date "2020.11.24"]
[Round "4"]
[White "PlotnikovPavel"]
[Black "PaulfromSPb"]
[Result "0-1"]
[WhiteElo "2491"]
[BlackElo "2670"]
[TimeControl "180+1"]
[EndTime "10:56:54 PST"]
[Termination "PaulfromSPb won by checkmate"]

1. e4 {[%clk 0:03:00.9]} 1... c5 {[%clk 0:02:58.9]} 2. Nc3 {[%clk 0:03:00.1]}
2... Nc6 {[%clk 0:02:58.2]} 3. Bb5 {[%clk 0:02:58.3]} 3... Nd4 {[%clk
0:02:57.6]} 4. Nf3 {[%clk 0:02:57.2]} 4... e6 {[%clk 0:02:58.5]} 5. O-O {[%clk
0:02:56.1]} 5... Ne7 {[%clk 0:02:57.9]} 6. Nxd4 {[%clk 0:02:52.9]} 6... cxd4
{[%clk 0:02:57.7]} 7. Ne2 {[%clk 0:02:53.8]} 7... a6 {[%clk 0:02:58.4]} 8. Bd3
{[%clk 0:02:53.6]} 8... Nc6 {[%clk 0:02:58]} 9. b3 {[%clk 0:02:54.2]} 9... Bc5
{[%clk 0:02:55.8]} 10. Bb2 {[%clk 0:02:54.3]} 10... O-O {[%clk 0:02:55.8]} 11.
c3 {[%clk 0:02:52.4]} 11... dxc3 {[%clk 0:02:55.5]} 12. dxc3 {[%clk 0:02:51.8]}
12... d5 {[%clk 0:02:53.9]} 13. exd5 {[%clk 0:02:51.3]} 13... exd5 {[%clk
0:02:52.2]} 14. Qc2 {[%clk 0:02:51.3]} 14... h6 {[%clk 0:02:51.7]} 15. Rad1
{[%clk 0:02:50.7]} 15... Qg5 {[%clk 0:02:50.1]} 16. Bc1 {[%clk 0:02:47.3]} 16...
Qf6 {[%clk 0:02:49.5]} 17. Nf4 {[%clk 0:02:45.6]} 17... Be6 {[%clk 0:02:49.2]}
18. Nh5 {[%clk 0:02:39.1]} 18... Qh4 {[%clk 0:02:46.2]} 19. Ng3 {[%clk
0:02:38.2]} 19... Ne5 {[%clk 0:02:44.1]} 20. Bf5 {[%clk 0:02:33.9]} 20... Rae8
{[%clk 0:02:43.1]} 21. Rde1 {[%clk 0:02:26.9]} 21... Ng4 {[%clk 0:02:34.1]} 22.
Bxg4 {[%clk 0:02:26.7]} 22... Qxg4 {[%clk 0:02:32.4]} 23. Be3 {[%clk 0:02:25.8]}
23... Bd6 {[%clk 0:02:31.7]} 24. Bd4 {[%clk 0:02:21.6]} 24... Rc8 {[%clk
0:02:30.1]} 25. Qd3 {[%clk 0:02:14]} 25... h5 {[%clk 0:02:29.8]} 26. h3 {[%clk
0:02:11.4]} 26... Qg5 {[%clk 0:02:29.4]} 27. Be3 {[%clk 0:02:09.2]} 27... Qh4
{[%clk 0:02:28.8]} 28. Qd2 {[%clk 0:01:58.1]} 28... Bxg3 {[%clk 0:02:23.4]} 29.
Bg5 {[%clk 0:01:53.9]} 29... Bxf2+ {[%clk 0:02:21.5]} 30. Rxf2 {[%clk
0:01:53.8]} 30... Qg3 {[%clk 0:02:19.9]} 31. Rf3 {[%clk 0:01:49.2]} 31... Qc7
{[%clk 0:02:18.9]} 32. Bf4 {[%clk 0:01:48.8]} 32... Qc5+ {[%clk 0:02:17.8]} 33.
Be3 {[%clk 0:01:49.2]} 33... Qxc3 {[%clk 0:02:16.2]} 34. Qf2 {[%clk 0:01:48.8]}
34... Qc6 {[%clk 0:01:57]} 35. Bd4 {[%clk 0:01:48.1]} 35... f6 {[%clk
0:01:56.9]} 36. Qh4 {[%clk 0:01:46.4]} 36... Rce8 {[%clk 0:01:49.6]} 37. Ref1
{[%clk 0:01:39.2]} 37... Bf7 {[%clk 0:01:39.3]} 38. Rg3 {[%clk 0:01:38.9]} 38...
Re4 {[%clk 0:01:39]} 39. Qxf6 {[%clk 0:01:36.6]} 39... Qxf6 {[%clk 0:01:38.5]}
40. Bxf6 {[%clk 0:01:36.3]} 40... g6 {[%clk 0:01:35.3]} 41. Rgf3 {[%clk
0:01:29]} 41... Be6 {[%clk 0:01:34.7]} 42. Rc1 {[%clk 0:01:28]} 42... Rf7 {[%clk
0:01:32.4]} 43. Kf2 {[%clk 0:01:16.2]} 43... Kh7 {[%clk 0:01:30.8]} 44. Bg5
{[%clk 0:01:11.3]} 44... Bf5 {[%clk 0:01:28.1]} 45. Rc8 {[%clk 0:01:04.2]} 45...
Kg7 {[%clk 0:01:20.3]} 46. Rd8 {[%clk 0:01:01.8]} 46... d4 {[%clk 0:01:19.1]}
47. Rd6 {[%clk 0:00:43.2]} 47... b5 {[%clk 0:00:52.2]} 48. Rf4 {[%clk
0:00:42.8]} 48... Be6 {[%clk 0:00:43.3]} 49. Kg3 {[%clk 0:00:35]} 49... Rfxf4
{[%clk 0:00:36.3]} 50. Bxf4 {[%clk 0:00:35.9]} 50... Kf7 {[%clk 0:00:36.2]} 51.
Kf3 {[%clk 0:00:34.2]} 51... Re1 {[%clk 0:00:32.9]} 52. Rxd4 {[%clk 0:00:33.1]}
52... Ra1 {[%clk 0:00:30]} 53. Rd2 {[%clk 0:00:33.2]} 53... Rf1+ {[%clk
0:00:28.9]} 54. Kg3 {[%clk 0:00:28.2]} 54... h4+ {[%clk 0:00:27.6]} 55. Kxh4
{[%clk 0:00:24.9]} 55... Rxf4+ {[%clk 0:00:27]} 56. Kg3 {[%clk 0:00:22.5]} 56...
Rf6 {[%clk 0:00:25.1]} 57. Rd6 {[%clk 0:00:21.5]} 57... Bf5 {[%clk 0:00:24.1]}
58. Rd4 {[%clk 0:00:19.6]} 58... Rc6 {[%clk 0:00:22.9]} 59. Kf4 {[%clk
0:00:19.3]} 59... Kf6 {[%clk 0:00:23]} 60. h4 {[%clk 0:00:17.5]} 60... Bb1
{[%clk 0:00:22.2]} 61. g4 {[%clk 0:00:17.3]} 61... Bxa2 {[%clk 0:00:20.4]} 62.
b4 {[%clk 0:00:17.6]} 62... Rc4 {[%clk 0:00:20]} 63. g5+ {[%clk 0:00:18.2]}
63... Ke6 {[%clk 0:00:19.7]} 64. Rxc4 {[%clk 0:00:19.1]} 64... bxc4 {[%clk
0:00:19.6]} 65. Ke4 {[%clk 0:00:20]} 65... Bb1+ {[%clk 0:00:18.8]} 66. Kd4
{[%clk 0:00:20.9]} 66... Bd3 {[%clk 0:00:18.8]} 67. h5 {[%clk 0:00:20.1]} 67...
gxh5 {[%clk 0:00:18.7]} 68. g6 {[%clk 0:00:21]} 68... Kf6 {[%clk 0:00:18.9]} 69.
Kc5 {[%clk 0:00:18.3]} 69... Kg7 {[%clk 0:00:19.8]} 70. Kb6 {[%clk 0:00:19.2]}
70... c3 {[%clk 0:00:19.3]} 71. b5 {[%clk 0:00:19.8]} 71... axb5 {[%clk
0:00:19.2]} 72. Ka6 {[%clk 0:00:20.7]} 72... c2 {[%clk 0:00:19]} 73. Ka5 {[%clk
0:00:21.6]} 73... c1=Q {[%clk 0:00:18.2]} 74. Ka6 {[%clk 0:00:22.5]} 74... b4+
{[%clk 0:00:17.9]} 75. Ka5 {[%clk 0:00:23.4]} 75... b3 {[%clk 0:00:18]} 76. Ka4
{[%clk 0:00:24.3]} 76... b2 {[%clk 0:00:18]} 77. Ka3 {[%clk 0:00:25.2]} 77...
b1=Q+ {[%clk 0:00:17]} 78. Ka4 {[%clk 0:00:24.9]} 78... Qc4+ {[%clk 0:00:16.4]}
79. Ka5 {[%clk 0:00:21.6]} 79... Qcb5# {[%clk 0:00:15.3]} 0-1

[Event "*** Titled Tuesday Blitz"]
[Site "Chess.com"]
[Date "2020.11.24"]
[Round "4"]
[White "kakorrhaphiophobie"]
[Black "szachuspl"]
[Result "1/2-1/2"]
[WhiteElo "2329"]
[BlackElo "2494"]
[TimeControl "180+1"]
[EndTime "10:56:55 PST"]
[Termination "Game drawn - insufficient material"]

1. e4 {[%clk 0:02:59.6]} 1... c5 {[%clk 0:02:59.8]} 2. d4 {[%clk 0:02:59.5]}
2... cxd4 {[%clk 0:02:59.8]} 3. c3 {[%clk 0:03:00.1]} 3... d3 {[%clk 0:02:59.9]}
4. Bxd3 {[%clk 0:02:59.2]} 4... Nc6 {[%clk 0:02:58.9]} 5. c4 {[%clk 0:02:58.5]}
5... Nf6 {[%clk 0:02:56.9]} 6. Nf3 {[%clk 0:02:58.4]} 6... e5 {[%clk 0:02:57.1]}
7. O-O {[%clk 0:02:54.5]} 7... Bc5 {[%clk 0:02:56.4]} 8. Nc3 {[%clk 0:02:52.5]}
8... O-O {[%clk 0:02:55.9]} 9. Bg5 {[%clk 0:02:51.7]} 9... h6 {[%clk 0:02:55.9]}
10. Bh4 {[%clk 0:02:51.8]} 10... d6 {[%clk 0:02:54.8]} 11. Nd5 {[%clk
0:02:40.4]} 11... g5 {[%clk 0:02:54.2]} 12. Nxg5 {[%clk 0:02:40]} 12... Nxd5
{[%clk 0:02:52.1]} 13. exd5 {[%clk 0:02:37.8]} 13... hxg5 {[%clk 0:02:48.9]} 14.
Qh5 {[%clk 0:02:21.7]} 14... f5 {[%clk 0:02:20.2]} 15. Qg6+ {[%clk 0:02:17]}
15... Kh8 {[%clk 0:02:20.2]} 16. Bxg5 {[%clk 0:02:12.6]} 16... Qc7 {[%clk
0:01:33.8]} 17. Bf6+ {[%clk 0:01:50.9]} 17... Rxf6 {[%clk 0:01:30.5]} 18. Qxf6+
{[%clk 0:01:51.8]} 18... Qg7 {[%clk 0:01:28.3]} 19. Qxg7+ {[%clk 0:01:51.7]}
19... Kxg7 {[%clk 0:01:28.6]} 20. dxc6 {[%clk 0:01:52.4]} 20... bxc6 {[%clk
0:01:29]} 21. g3 {[%clk 0:01:38.9]} 21... Kf6 {[%clk 0:01:26.9]} 22. Kg2 {[%clk
0:01:38.6]} 22... Be6 {[%clk 0:01:26.4]} 23. b3 {[%clk 0:01:37.8]} 23... e4
{[%clk 0:01:17.7]} 24. Bc2 {[%clk 0:01:34.7]} 24... d5 {[%clk 0:01:17.5]} 25.
cxd5 {[%clk 0:01:33.9]} 25... cxd5 {[%clk 0:01:17.6]} 26. f3 {[%clk 0:01:32.4]}
26... Ke5 {[%clk 0:01:15.2]} 27. Rae1 {[%clk 0:01:26.1]} 27... Rh8 {[%clk
0:01:10.2]} 28. g4 {[%clk 0:01:21.3]} 28... Kd4 {[%clk 0:00:53.8]} 29. gxf5
{[%clk 0:01:18]} 29... Bxf5 {[%clk 0:00:54]} 30. Kh1 {[%clk 0:00:48.2]} 30...
Bh3 {[%clk 0:00:52.7]} 31. fxe4 {[%clk 0:00:27.1]} 31... Bxf1 {[%clk 0:00:52.2]}
32. Rxf1 {[%clk 0:00:28]} 32... dxe4 {[%clk 0:00:51.6]} 33. Rd1+ {[%clk
0:00:26.5]} 33... Ke5 {[%clk 0:00:42.7]} 34. Re1 {[%clk 0:00:22.5]} 34... e3
{[%clk 0:00:40.9]} 35. Re2 {[%clk 0:00:20.5]} 35... Rg8 {[%clk 0:00:37.4]} 36.
Bd3 {[%clk 0:00:19.7]} 36... Kd4 {[%clk 0:00:36.9]} 37. Bc4 {[%clk 0:00:19.2]}
37... Rg7 {[%clk 0:00:37.4]} 38. h3 {[%clk 0:00:17.6]} 38... a5 {[%clk
0:00:36.9]} 39. a4 {[%clk 0:00:17.9]} 39... Bd6 {[%clk 0:00:33.7]} 40. Rg2
{[%clk 0:00:16.4]} 40... Rh7 {[%clk 0:00:31.2]} 41. Rg4+ {[%clk 0:00:16.9]}
41... Kc3 {[%clk 0:00:30.3]} 42. Kg2 {[%clk 0:00:17.8]} 42... Bc5 {[%clk
0:00:28.3]} 43. Re4 {[%clk 0:00:18.2]} 43... Rh6 {[%clk 0:00:25.5]} 44. h4
{[%clk 0:00:18.1]} 44... Rf6 {[%clk 0:00:25]} 45. h5 {[%clk 0:00:17.5]} 45...
Kd2 {[%clk 0:00:24.3]} 46. Kg3 {[%clk 0:00:17.6]} 46... Bd6+ {[%clk 0:00:24.4]}
47. Kg4 {[%clk 0:00:17.8]} 47... Rf2 {[%clk 0:00:24.3]} 48. h6 {[%clk
0:00:17.8]} 48... Rg2+ {[%clk 0:00:20.6]} 49. Kf5 {[%clk 0:00:16.8]} 49... Bc5
{[%clk 0:00:20.2]} 50. h7 {[%clk 0:00:14]} 50... Rh2 {[%clk 0:00:20.3]} 51. Kg6
{[%clk 0:00:11]} 51... Bb4 {[%clk 0:00:20.3]} 52. Rd4+ {[%clk 0:00:10.1]} 52...
Kc2 {[%clk 0:00:20]} 53. Rd5 {[%clk 0:00:10.4]} 53... Bc3 {[%clk 0:00:20]} 54.
Rh5 {[%clk 0:00:10.2]} 54... Rxh5 {[%clk 0:00:20]} 55. Kxh5 {[%clk 0:00:11.1]}
55... Kd2 {[%clk 0:00:20.5]} 56. Kg6 {[%clk 0:00:11.5]} 56... e2 {[%clk
0:00:20.6]} 57. Bxe2 {[%clk 0:00:11.8]} 57... Kxe2 {[%clk 0:00:21]} 58. Kf7
{[%clk 0:00:08.4]} 58... Kd2 {[%clk 0:00:21.1]} 59. Kg8 {[%clk 0:00:06.5]} 59...
Kc2 {[%clk 0:00:21.2]} 60. b4 {[%clk 0:00:05.8]} 60... axb4 {[%clk 0:00:21.3]}
61. a5 {[%clk 0:00:06.4]} 61... b3 {[%clk 0:00:21.8]} 62. a6 {[%clk 0:00:07]}
62... b2 {[%clk 0:00:22]} 63. a7 {[%clk 0:00:07.6]} 63... b1=Q {[%clk
0:00:21.5]} 64. a8=Q {[%clk 0:00:08.1]} 64... Qg1+ {[%clk 0:00:18.7]} 65. Kf7
{[%clk 0:00:08.7]} 65... Qg7+ {[%clk 0:00:18.2]} 66. Ke6 {[%clk 0:00:09.3]}
66... Qxh7 {[%clk 0:00:17]} 67. Qg2+ {[%clk 0:00:08.4]} 67... Bd2 {[%clk
0:00:17.1]} 68. Qd5 {[%clk 0:00:08.4]} 68... Qg8+ {[%clk 0:00:16.5]} 69. Kd6
{[%clk 0:00:08.7]} 69... Bb4+ {[%clk 0:00:16.4]} 70. Ke5 {[%clk 0:00:08.1]}
70... Qg5+ {[%clk 0:00:16.2]} 71. Kd4 {[%clk 0:00:08.5]} 71... Qd2+ {[%clk
0:00:15.1]} 72. Kc4 {[%clk 0:00:08.2]} 72... Qc3+ {[%clk 0:00:14.2]} 73. Kb5
{[%clk 0:00:08.4]} 73... Qb2 {[%clk 0:00:13.9]} 74. Qc4+ {[%clk 0:00:08.6]}
74... Bc3+ {[%clk 0:00:13.8]} 75. Kc6 {[%clk 0:00:09.2]} 75... Qb8 {[%clk
0:00:13.6]} 76. Qe4+ {[%clk 0:00:09.1]} 76... Kb2 {[%clk 0:00:13.7]} 77. Qe2+
{[%clk 0:00:09.2]} 77... Ka3 {[%clk 0:00:13.2]} 78. Qa6+ {[%clk 0:00:09.2]}
78... Kb2 {[%clk 0:00:12.6]} 79. Qb5+ {[%clk 0:00:09.7]} 79... Qxb5+ {[%clk
0:00:12.5]} 80. Kxb5 {[%clk 0:00:10.6]} 1/2-1/2

[Event "*** Titled Tuesday Blitz"]
[Site "Chess.com"]
[Date "2020.11.24"]
[Round "4"]
[White "DrVelja"]
[Black "Vladislav_Chizhikov"]
[Result "1/2-1/2"]
[WhiteElo "2768"]
[BlackElo "2525"]
[TimeControl "180+1"]
[EndTime "10:57:13 PST"]
[Termination "Game drawn by repetition"]

1. e4 {[%clk 0:03:00.9]} 1... e6 {[%clk 0:02:59.7]} 2. d4 {[%clk 0:03:00.4]}
2... d5 {[%clk 0:02:55.7]} 3. e5 {[%clk 0:02:59.5]} 3... c5 {[%clk 0:02:53.8]}
4. c3 {[%clk 0:03:00.1]} 4... Qb6 {[%clk 0:02:53.8]} 5. Nf3 {[%clk 0:03:00.3]}
5... Bd7 {[%clk 0:02:53]} 6. Bd3 {[%clk 0:03:00.6]} 6... Bb5 {[%clk 0:02:51.5]}
7. O-O {[%clk 0:02:58.3]} 7... Bxd3 {[%clk 0:02:50.7]} 8. Qxd3 {[%clk
0:02:59.2]} 8... Nc6 {[%clk 0:02:51]} 9. dxc5 {[%clk 0:02:55]} 9... Qxc5 {[%clk
0:02:50.8]} 10. Nbd2 {[%clk 0:02:52.3]} 10... Nh6 {[%clk 0:02:48.3]} 11. Nb3
{[%clk 0:02:51.2]} 11... Qc4 {[%clk 0:02:48.2]} 12. Qxc4 {[%clk 0:02:20.8]}
12... dxc4 {[%clk 0:02:49.1]} 13. Nbd2 {[%clk 0:02:20]} 13... b5 {[%clk
0:02:49.2]} 14. a4 {[%clk 0:02:17]} 14... b4 {[%clk 0:02:39.3]} 15. Nxc4 {[%clk
0:02:10]} 15... Nf5 {[%clk 0:02:38.7]} 16. Rd1 {[%clk 0:01:51.3]} 16... h5
{[%clk 0:02:36.1]} 17. Bg5 {[%clk 0:01:44.3]} 17... Rc8 {[%clk 0:02:34.3]} 18.
Rac1 {[%clk 0:01:35]} 18... Be7 {[%clk 0:02:32.2]} 19. Bxe7 {[%clk 0:01:20.7]}
19... Kxe7 {[%clk 0:02:33.1]} 20. Nd6 {[%clk 0:01:11.5]} 20... Nxd6 {[%clk
0:02:19.2]} 21. exd6+ {[%clk 0:01:12.4]} 21... Kd7 {[%clk 0:02:18.9]} 22. cxb4
{[%clk 0:01:03.6]} 22... f6 {[%clk 0:02:19]} 23. b5 {[%clk 0:00:57.2]} 23... Nb4
{[%clk 0:02:19.2]} 24. Nd4 {[%clk 0:00:51.7]} 24... Nd5 {[%clk 0:02:09.9]} 25.
Nc6 {[%clk 0:00:29.2]} 25... a6 {[%clk 0:02:09.8]} 26. Nd4 {[%clk 0:00:14]}
26... Rb8 {[%clk 0:01:51.6]} 27. bxa6 {[%clk 0:00:08.5]} 27... Rxb2 {[%clk
0:01:50.4]} 28. Nb5 {[%clk 0:00:08.3]} 28... Ra8 {[%clk 0:01:48.1]} 29. Nc7
{[%clk 0:00:06.7]} 29... Ra7 {[%clk 0:01:43.5]} 30. Nxd5 {[%clk 0:00:07.1]}
30... exd5 {[%clk 0:01:43.2]} 31. Rxd5 {[%clk 0:00:08]} 31... Ra2 {[%clk
0:01:41.2]} 32. a5 {[%clk 0:00:05.1]} 32... Rxa6 {[%clk 0:01:33.1]} 33. Rc7+
{[%clk 0:00:04.8]} 33... Ke6 {[%clk 0:01:33.5]} 34. Rd1 {[%clk 0:00:04.2]} 34...
Rxd6 {[%clk 0:01:32.7]} 35. Re1+ {[%clk 0:00:04.5]} 35... Kf5 {[%clk 0:01:31.8]}
36. Rxg7 {[%clk 0:00:05.2]} 36... Rdd2 {[%clk 0:01:30.6]} 37. Rf1 {[%clk
0:00:03.4]} 37... Rxa5 {[%clk 0:01:29.9]} 38. Rg3 {[%clk 0:00:03.3]} 38... Raa2
{[%clk 0:01:27.6]} 39. Rf3+ {[%clk 0:00:04.2]} 39... Kg6 {[%clk 0:01:27.6]} 40.
h4 {[%clk 0:00:04.4]} 40... Ra4 {[%clk 0:01:26.1]} 41. g3 {[%clk 0:00:04.8]}
41... Rad4 {[%clk 0:01:26.1]} 42. Kg2 {[%clk 0:00:05.7]} 42... Rd1 {[%clk
0:01:26.2]} 43. Rxd1 {[%clk 0:00:05.6]} 43... Rxd1 {[%clk 0:01:27.1]} 44. Re3
{[%clk 0:00:06.5]} 44... Rd4 {[%clk 0:01:26.1]} 45. Rb3 {[%clk 0:00:06.9]} 45...
Ra4 {[%clk 0:01:26]} 46. Rf3 {[%clk 0:00:07.8]} 46... Rb4 {[%clk 0:01:26]} 47.
Re3 {[%clk 0:00:08.7]} 47... Rc4 {[%clk 0:01:26]} 48. Kf3 {[%clk 0:00:09.6]}
48... Rb4 {[%clk 0:01:25.7]} 49. Re2 {[%clk 0:00:10.5]} 49... Rb3+ {[%clk
0:01:25.4]} 50. Re3 {[%clk 0:00:11.4]} 50... Rb4 {[%clk 0:01:25.4]} 51. Re8
{[%clk 0:00:12.1]} 51... Ra4 {[%clk 0:01:21.8]} 52. Rg8+ {[%clk 0:00:12.4]}
52... Kh7 {[%clk 0:01:17.3]} 53. Rb8 {[%clk 0:00:13.3]} 53... Kg6 {[%clk
0:01:16.8]} 54. Rh8 {[%clk 0:00:13.7]} 54... Rb4 {[%clk 0:01:15]} 55. Kg2 {[%clk
0:00:14.2]} 55... Ra4 {[%clk 0:01:14.5]} 56. Kh3 {[%clk 0:00:14.2]} 56... Rb4
{[%clk 0:01:14.3]} 57. Kg2 {[%clk 0:00:13.9]} 57... Ra4 {[%clk 0:01:14.3]} 58.
Rc8 {[%clk 0:00:13.9]} 58... Rb4 {[%clk 0:01:12.3]} 59. Rc3 {[%clk 0:00:14.1]}
59... Ra4 {[%clk 0:01:11.9]} 60. Rb3 {[%clk 0:00:14.8]} 60... Rc4 {[%clk
0:01:11.7]} 61. Ra3 {[%clk 0:00:15.4]} 61... Rb4 {[%clk 0:01:11.7]} 62. Ra5
{[%clk 0:00:15.9]} 62... Rc4 {[%clk 0:01:11.5]} 63. Rd5 {[%clk 0:00:15.4]} 63...
Rb4 {[%clk 0:01:11.6]} 64. Rd3 {[%clk 0:00:07.5]} 64... Ra4 {[%clk 0:01:11.4]}
65. Rf3 {[%clk 0:00:07.4]} 65... Rb4 {[%clk 0:01:11.4]} 66. Rf4 {[%clk
0:00:05.4]} 66... Rb3 {[%clk 0:01:11.3]} 67. f3 {[%clk 0:00:03.4]} 67... Rb2+
{[%clk 0:01:10.4]} 68. Kh3 {[%clk 0:00:04.3]} 68... Ra2 {[%clk 0:01:09.9]} 69.
g4 {[%clk 0:00:04.2]} 69... Ra5 {[%clk 0:00:59.3]} 70. Kg3 {[%clk 0:00:03.9]}
70... Rb5 {[%clk 0:00:58.9]} 71. Rd4 {[%clk 0:00:02.5]} 71... hxg4 {[%clk
0:00:57.7]} 72. fxg4 {[%clk 0:00:03.4]} 72... Rb3+ {[%clk 0:00:55.4]} 73. Kf4
{[%clk 0:00:02.4]} 73... Rb1 {[%clk 0:00:55.7]} 74. h5+ {[%clk 0:00:02.8]} 74...
Kh6 {[%clk 0:00:55.8]} 75. Rd6 {[%clk 0:00:02.8]} 75... Rf1+ {[%clk 0:00:55.9]}
76. Kg3 {[%clk 0:00:03.4]} 76... Kg5 {[%clk 0:00:50.8]} 77. Rd5+ {[%clk
0:00:03.5]} 77... Kh6 {[%clk 0:00:50.9]} 78. Rd8 {[%clk 0:00:04.4]} 78... Rg1+
{[%clk 0:00:48.3]} 79. Kf4 {[%clk 0:00:04.2]} 79... Rf1+ {[%clk 0:00:48.1]} 80.
Ke4 {[%clk 0:00:04.8]} 80... Kg7 {[%clk 0:00:39]} 81. Rd7+ {[%clk 0:00:04.9]}
81... Kh6 {[%clk 0:00:38.7]} 82. Rd8 {[%clk 0:00:05.8]} 82... Kg7 {[%clk
0:00:38]} 83. Ke3 {[%clk 0:00:02]} 83... Kh6 {[%clk 0:00:37.1]} 84. Ke4 {[%clk
0:00:02]} 1/2-1/2